Cogmind - Beta 13 @@@ ROGUE MODE // 2024.04.20 @ 00:14:31 Player: Glincka Result: Destroyed by 2P-VHC(R) with Subdweller Laser Performance ------------- Evolutions (0) 0 Regions Visited (2) 400 Robots Destroyed (9) 45 Value Destroyed (187) 187 Prototype IDs (0) 0 Alien Tech Used (0) 0 Bonus (0) 0 TOTAL SCORE: 632 Bonus ------- None Cogmind --------- Core Integrity 0/250 Matter 257/300 Energy 86/250 System Corruption 0% Temperature Cool (6) Movement Treading (320) Ox2 Location -10/Subcaves Parts ------- > --- POWER (1) -------- Ion Engine > --- PROPULSION (2) --- Light Treads > --- UTILITY (2) ------ High-capacity Storage Unit > --- WEAPON (2) ------- Hammer Hammer > --- INVENTORY (20) --- Light Treads Aluminum Leg Wheel Compact Wheel Structural Scanner Sensor Array ECM Suite Light Armor Plating Light Armor Plating Light Armor Plating Scrap Shield Small Laser Light Assault Rifle Light Assault Rifle Heavy Assault Rifle Heavy Assault Rifle Heavy Assault Rifle Heavy Assault Rifle Peak State ------------ > --- POWER ------------ Light Nuclear Core > --- PROPULSION ------- Aluminum Leg Aluminum Leg > --- UTILITY ---------- High-capacity Storage Unit Signal Interpreter > --- WEAPON ----------- Heavy Assault Rifle Heavy Assault Rifle > --- INVENTORY -------- Ion Engine Light Treads Light Treads Wheel Compact Wheel Structural Scanner Sensor Array ECM Suite Light Armor Plating Light Armor Plating Light Armor Plating Small Laser Light Assault Rifle Light Assault Rifle Heavy Assault Rifle Heavy Assault Rifle Hammer Hammer [Rating: 13] Favorites ----------- Power Light Nuclear Core Engine Light Ion Engine Power Core Light Nuclear Core Propulsion Aluminum Leg Treads Light Treads Leg Aluminum Leg Utility Signal Interpreter Storage High-capacity Storage Unit Processor Signal Interpreter Weapon Heavy Assault Rifle Ballistic Gun Heavy Assault Rifle Ballistic Cannon Light Cannon Impact Weapon Hammer Build | -11 -10 -10 ------- Run | Yrd Mat Sub Slots Evolved . | . . . Power . | . . . Propulsion . | . . . Utility . | . . . Weapon . | . . . Parts Attached 20 | 6 10 4 Power 3 | 1 1 1 Engine 2 | 1 . 1 Core 1 | . 1 . Reactor . | . . . Propulsion 5 | 2 2 1 Treads 1 | . . 1 Leg 4 | 2 2 . Wheel . | . . . Hover . | . . . Flight . | . . . Utility 3 | 1 2 . Device . | . . . Storage 2 | 1 1 . Processor 1 | . 1 . Hackware . | . . . Protection . | . . . Artifact . | . . . Weapon 9 | 2 5 2 Energy Gun . | . . . Energy Cannon . | . . . Ballistic Gun 6 | 2 4 . Ballistic Cannon 1 | . 1 . Launcher . | . . . Special Weapon . | . . . Impact Weapon 2 | . . 2 Slashing Weapon . | . . . Piercing Weapon . | . . . Special Melee Weapon . | . . . Unidentified Prototypes . | . . . Parts Lost 3 | . 1 2 Power 1 | . . 1 Propulsion 2 | . 1 1 Utility . | . . . Weapon . | . . . Highest Loss Streak 2 | . 1 2 To Critical Strikes . | . . . Average Slot Usage (%) 96 | . 96 96 Engine 2 | . 2 . Core 11 | . 11 11 Leg 27 | . 27 26 Storage 14 | . 14 14 Processor 11 | . 11 13 Ballistic Gun 25 | . 25 27 Ballistic Cannon 2 | . 2 . Naked Turns . | . . . Heaviest Build 51 | 11 51 51 Greatest Support 20 | 20 20 20 Greatest Overweight (x) 2 | 1 2 2 Average Overweight (x) 1 | . 1 2 Largest Inventory Capacity 20 | 8 20 20 Average Capacity 16 | 6 16 20 Most Carried 20 | 6 18 20 Average Carried 11 | 4 10 19 Final Capacity 20 | 8 20 20 Final Carried 19 | 6 18 19 Class Distribution -------------------- 100% | Mutant Dominant Class ---------------- Mutant | -10/Materials Mutant | -10/Subcaves Resources | -11 -10 -10 ----------- Run | Yrd Mat Sub Matter Collected 500 | 260 235 5 Remotely . | . . . Salvage Created 222 | . 183 39 Parts 21 | . 19 2 Haulers Intercepted . | . . . Recyclers Shooed . | . . . Parts Field Recycled . | . . . Retrieved Matter . | . . . Parts Self-Destructed 8 | . . 8 Prevented . | . . . Kills | -11 -10 -10 ------- Run | Yrd Mat Sub Combat Hostiles Destroyed 8 | . 7 1 Guns 5 | . 4 1 Cannons 3 | . 3 . Classes Destroyed 4 | . 3 1 Watcher 1 | . 1 . Swarmer 5 | . 5 . Grunt 2 | . 2 . Subdweller 1 | . . 1 Best Kill Streak 7 | . 7 1 Combat Bots Only 6 | . 6 1 Max Kills in Single Turn 1 | . 1 1 Gunslinging . | . . . Exploded . | . . . Melee . | . . . Uniques/NPCs Destroyed . | . . . Combat | -11 -10 -10 -------- Run | Yrd Mat Sub Hostile Shots Fired 124 | . 88 36 Missed 35 | . 27 8 Damage Taken 1121 | . 563 558 Core 261 | . 87 174 Absorbed by Shields . | . . . Core Remaining (%) 100 | 100 . . Volleys Fired 23 | . 20 3 Largest 2 | . 2 2 Hottest 55 | . 55 46 Shots Fired 46 | . 40 6 Gun 26 | . 20 6 Cannon 20 | . 20 . Launcher . | . . . Special . | . . . Kinetic 46 | . 40 6 Thermal . | . . . Explosive . | . . . Electromagnetic . | . . . Robot Hit Streak 7 | . 7 4 Robot Miss Streak 4 | . 4 1 Penetration Max . | . . . Secondary Targets . | . . . Shots Hit Robots 24 | . 18 6 Core Hits 13 | . 11 2 Critical Kills . | . . . Critical Parts Destroyed 1 | . . 1 Critical Strikes 2 | . 1 1 Blast 1 | . 1 . Smash 1 | . . 1 Melee Attacks 2 | . . 2 Impact 2 | . . 2 Slashing . | . . . Piercing . | . . . Sneak Attacks . | . . . Combat Hostiles . | . . . Follow-up Attacks 1 | . . 1 Damage Inflicted 380 | . 282 98 Guns 194 | . 131 63 Cannons 142 | . 142 . Explosions . | . . . Melee 35 | . . 35 Ramming 9 | . 9 . Kinetic 336 | . 273 63 Thermal . | . . . Explosive . | . . . Electromagnetic . | . . . Impact 35 | . . 35 Slashing . | . . . Piercing . | . . . Highest Corruption . | . . . Average Corruption . | . . . Corruption Purged . | . . . Corruption Blocked . | . . . Overload Shots . | . . . Overflow Damage 20 | . . 20 Projectiles . | . . . Explosions . | . . . Melee 20 | . . 20 Knockbacks 3 | . 3 . Impact . | . . . Kinetic 3 | . 3 . Secondary . | . . . Self-Inflicted Damage . | . . . Shots . | . . . Rammed . | . . . Targets Rammed 2 | . 2 . Kicked 2 | . 2 . Crushed . | . . . Highest Temperature 27 | . 27 . Average Temperature 13 | . 13 . Received Heat Transfer 231 | . 81 150 Siege Activations . | . . . Robots Corrupted . | . . . Combat Hostiles . | . . . Parts Fried . | . . . Impact Corruptions 1 | . . 1 Robots Melted . | . . . Combat Hostiles . | . . . Parts Melted . | . . . Heat Transferred . | . . . Parts Sabotaged . | . . . Parts Stolen . | . . . Parts Stripped . | . . . Power Chain Reactions . | . . . Alert | -11 -10 -10 ------- Run | Yrd Mat Sub Peak Influence 347 | . 347 . Initial . | . . . Average 112 | . 119 . Maximum Alert Level 1 | . 1 . Low Security (%) 80 | 100 79 . Level 1 19 | . 20 . Level 2 . | . . . Level 3 . | . . . Level 4 . | . . . Level 5 . | . . . High Security . | . . . Max Security . | . . . Squads Dispatched . | . . . Investigation . | . . . Extermination . | . . . Reinforcement . | . . . Assault . | . . . Garrison . | . . . Intercept . | . . . Searches Triggered . | . . . Construction Impeded . | . . . Haulers Reinforced . | . . . Active Scanning Responses . | . . . Cargo Convoy Interrupts . | . . . Stealth | -11 -10 -10 --------- Run | Yrd Mat Sub Distress Signals 1 | . 1 . Communications Jammed . | . . . Distress Signals . | . . . Times Spotted 34 | . 21 13 Peak Tracking Total 10 | . 8 10 Tactical Retreats 7 | . 7 . Traps | -11 -10 -10 ------- Run | Yrd Mat Sub Traps Triggered . | . . . Indirectly . | . . . Trap Hack Attempts . | . . . Triggered . | . . . Disarmed . | . . . Reprogrammed . | . . . Reused . | . . . Traps Extracted . | . . . Installed . | . . . Triggered . | . . . Machines | -11 -10 -10 ---------- Run | Yrd Mat Sub Machines Disabled . | . . . Max in Single Turn . | . . . Machines Repaired . | . . . Machines Dismantled . | . . . Machines Sabotaged . | . . . Overloaded Fab Kills . | . . . Hacking | -11 -10 -10 --------- Run | Yrd Mat Sub Machines Accessed 4 | . 4 . Terminals 3 | . 3 . Fabricators . | . . . Repair Stations . | . . . Recycling Units 1 | . 1 . Scanalyzers . | . . . Garrison Access . | . . . Total Hacks 15 | . 15 . Successful 10 | . 10 . Failed 5 | . 5 . Catastrophic 1 | . 1 . Database Lockouts . | . . . Manual 2 | . 2 . Terminals 11 | . 11 . Fabricators . | . . . Repair Stations . | . . . Recycling Units 4 | . 4 . Scanalyzers . | . . . Garrison Access . | . . . Terminal Hacks 6 | . 6 . Record 3 | . 3 . Alert Level 1 | . 1 . Locate Traps 1 | . 1 . Maintenance Status 1 | . 1 . Fabricator Hacks . | . . . Repair Station Hacks . | . . . Recycling Unit Hacks 4 | . 4 . Process 2 | . 2 . Report Inventory 1 | . 1 . Retrieve Matter 1 | . 1 . Scanalyzer . | . . . Garrison Access Hacks . | . . . Unauthorized Hacks . | . . . Terminals . | . . . Fabricators . | . . . Repair Stations . | . . . Recycling Units . | . . . Scanalyzers . | . . . Garrison Access . | . . . Data Cores Recovered . | . . . Used . | . . . Hacking Detections 3 | . 3 . Full Trace Events . | . . . Feedback Events . | . . . Feedback Blocked . | . . . Robot Schematics Acquired . | . . . Robots Built . | . . . Authchips . | . . . Time . | . . . Total Robot Build Rating . | . . . Part Schematics Acquired . | . . . Parts Built . | . . . Authchips . | . . . Time . | . . . Total Part Build Rating . | . . . Parts Repaired . | . . . Time . | . . . Parts Recycled . | . . . Recycled Matter 156 | . 156 . Retrieved Matter 299 | . 299 . Retrieved Components . | . . . Parts Scanalyzed . | . . . Part Schematics Acquired . | . . . Parts Damaged . | . . . Bothacking | -11 -10 -10 ------------ Run | Yrd Mat Sub Used RIF Installer . | . . . Robots Hacked . | . . . Non-combat . | . . . Combat . | . . . Robot Hacks Applied . | . . . Relay Couplers Released . | . . . Fabnet Peak Effective % . | . . . Robots Rewired . | . . . Allies Hacked . | . . . Hacks Repelled . | . . . Allies | -11 -10 -10 -------- Run | Yrd Mat Sub Total Allies . | . . . Largest Group . | . . . Highest-Rated Group . | . . . Highest-Rated Ally . | . . . Total Orders . | . . . Ally Attacks . | . . . Total Damage . | . . . Kills . | . . . Allies Corrupted . | . . . Allies Melted . | . . . Intel | -11 -10 -10 ------- Run | Yrd Mat Sub Robot Analysis Total . | . . . Derelict Logs Recovered . | . . . Drone Launches . | . . . Drone Recoveries . | . . . Exploration | -11 -10 -10 ------------- Run | Yrd Mat Sub Turns Passed 1332 | 71 1101 160 Spaces Moved 599 | 59 486 54 Core 25 | 25 . . Treads . | . . . Legs 574 | 34 486 54 Wheels . | . . . Hover . | . . . Flight . | . . . Fastest Speed 50 | 50 120 260 Average Speed 201 | 91 208 260 Slowest Speed 260 | 120 260 260 Overloaded Moves . | . . . Propulsion Burnouts . | . . . Robots Hopped . | . . . Cave-ins Triggered . | . . . Exploration Rate (%) 26 | 4 71 3 Regions Visited 2 Branch Regions 1 Pre-discovered Areas . | . . . Known Exits Taken 1 | . 1 . Unknown Exits Taken 1 | 1 . . Scrap Searched . | . . . Spaces Dug . | . . . Terrain Destroyed . | . . . Melee . | . . . Projectile . | . . . AOE . | . . . Terrain Rammed . | . . . Walls Destroyed . | . . . Machines Disabled . | . . . Actions | -11 -10 -10 --------- Run | Yrd Mat Sub Total 681 | 76 538 67 Wait . | . . . Move 597 | 58 485 54 Hop . | . . . Pick Up 27 | 12 13 2 Fast Attach 2 | . 2 . Attach 12 | 6 4 2 Detach 5 | . 3 2 Swap 6 | . 4 2 Drop 6 | . 5 1 Fire 23 | . 20 3 Melee 1 | . . 1 Ram . | . . . Kick 2 | . 2 . Crush . | . . . Escape Stasis . | . . . Rewire . | . . . Trap . | . . . Miscellaneous . | . . . Route ------- -11/Scrapyard -10/Materials (discovered 3 exits: *Mat x2 / *Sub) -10/Subcaves History --------- Turn | Location | Event 20 | -11/Scrapyard | Discovered new exit (range 16) 72 | -11/Scrapyard | Entered Materials 314 | -10/Materials | Build established: Mutant 591 | -10/Materials | Discovered new exit (range 16) 628 | -10/Materials | Identified exit to Materials 813 | -10/Materials | Discovered exit to Materials (range 16) 1147 | -10/Materials | Discovered new exit (range 10) 1170 | -10/Materials | Identified exit to Subcaves 1173 | -10/Materials | Entered Subcaves 1183 | -10/Subcaves | Shifting Twisted Machinery released Spk. Treads 1275 | -10/Subcaves | Ambushed by swarm of Subdwellers 1276 | -10/Subcaves | Ambushed by Subdwellers from Twisted Machinery 1276 | -10/Subcaves | Ambushed by Subdwellers from Twisted Machinery 1276 | -10/Subcaves | Ambushed by Subdwellers from Twisted Machinery 1278 | -10/Subcaves | Ambushed by Subdwellers from Twisted Machinery 1282 | -10/Subcaves | Ambushed by Subdweller buried in earth 1293 | -10/Subcaves | Core integrity fell below 50% 1329 | -10/Subcaves | Core integrity fell below 20% 1333 | -10/Subcaves | Destroyed by 2P-VHC(R) with Subdweller Laser Last Messages --------------- A5-7UC(R) suffers critical hit (Destroy). Acquired 5 matter. HV Slug penetrates VH-BC8(R). VH-BC8(R) destroyed. HV Slug penetrates A5-7UC(R). A5-7UC(R) suffers critical hit (Destroy). A5-7UC(R) destroyed. Dropped Lgt. Treads. Acquired Lgt. Treads. 2P-VHC(R): "ARGHSUB!" Aluminum Leg destroyed. Different forms of propulsion may not be used simultaneously, Aluminum Leg automatically deactivated. GN-JVR(R): "ARGHSUB!" Discarded Signal Interpreter. 2P-VHC(R) suffers critical hit (Smash). Destroyed Sub. Optics. 2P-VHC(R) system corrupted by crushing effect. Hammer follow-up attack on 2P-VHC(R). Map ----- +----------------------------------------------------+ | ?????????????????????????????????????????????????? | | ?????????????????????????????????????????????????? | | ?????????????????????????????????????????????????? | | ?????????????????????????????????????????????????? | | ?????????????????????????????????????????????????? | | ?????????????????????????????????????????????????? | | ?????????????????????????????????????????????????? | | ?????????????????????????????????????????????????? | | ?????????????????????????????????????????????????? | | ?????????????????????????????????????????????????? | | ?????????????????????????????????????????????????? | | ?????????????????????????????????????????????????? | | ?????????????????????????????????????????????????? | | ?????????????????????????????????????????????????? | | ?????????????????????????????????????????????????? | | ?????????????????????????????????????????????????? | | ?????????????????????????????????????????????????? | | ????????????????????????????????????????????????? | | # ???????????????????????????????????????????????? | | # ???????????????????????????????????????????????? | | # ??????????????????????????????????????????????? | | #?????????????????????????????????????????????? | | ???###???????????????###?????????????????????? | | ?## #???????????????# #?????????????????????? | | ?# #########??????##R##???????#????????????? | | ## # # # #?????##@ R##????? #????????????? | | ?# %% ##?#### ###[##??? "#????????????? | | ?# ## ### R####==####&#?????????????? | | ?# % # ## ### % ####?# %&[&"!#??????????????? | | ?###?# #######?#####????### =&%##??????????????? | | ?????# ######??????????????##*[#???????????????? | | ????## # #??????????????#&%##???????????????? | | ????# % #??????????????####????????????????? | | ????# # #??????????????????????????????????? | | ????# # ## "?????????????????????????????? | | ????# """ "=?????????????????????????????? | | ????## " " " ???????????????????????????? | | ?????# """ ##" ??????????????????????????? | | ?????# ""###?# ### ?????????????????????????? | | ?????## ###????# ##?????????????????????????????? | | ??????###???????###??????????????????????????????? | | ?????????????????????????????????????????????????? | | ?????????????????????????????????????????????????? | | ?????????????????????????????????????????????????? | | ?????????????????????????????????????????????????? | | ?????????????????????????????????????????????????? | | ?????????????????????????????????????????????????? | | ?????????????????????????????????????????????????? | | ?????????????????????????????????????????????????? | | ?????????????????????????????????????????????????? | +----------------------------------------------------+ Best States ------------- Heat Dissipation 25 Energy Generation 14 Energy Capacity 250 Matter Stores 300 Matter Capacity 300 Sight Range 16 Terrain Scan Density 10 Evasion (%) 55 Recoil Reduction 1 Item Schematics ----------------- None Robot Schematics ------------------ None Fabricated ------------ Nothing Alien Tech Used ----------------- None Achievements -------------- None Challenges ------------ None Game ------ Seed PiercingMagneticFlakker Manual? 0 Play Time 00:20:18 Cumulative 11.3 hours Start 2024.04.19 @ 23:52:59 End 2024.04.20 @ 00:14:31 Sessions 1 Manual Loads 0 Difficulty Rogue Special Mode None Game No. 12 Rogue 12 Adventurer 0 Explorer 0 Win Type - Total 0 Types 0/0/0/0/0/0/0/0/0 Lore% 15 Gallery% 15 Achievement% 15 Wizard Run 0 Options --------- Layout 1 ASCII 0 Keyboard 1 Movement Numpad Keybinds 0 Fullscreen 1 Font 24/Smallcaps Map View 50x35 Zoom Use 0% Tactical HUD 0 Map Filters NONE Filters NONE Steam 1 RUN: 88e6c044-7f4c-40f7-b75f-8607899d18fc